fUSD/lending_fUSD_20250526
["ID","MTS","AMOUNT","RATE_DAILY","PERIOD"]
[362365140,1748219441987,-420.0,0.00019994,2]
[362365142,1748219441996,-420.0,0.00019994,2]
[362365144,1748219442006,-420.0,0.00019994,2]
[362365146,1748219442016,-420.0,0.00019994,2]
[362365148,1748219442026,-420.0,0.00019994,2]
[362365150,1748219442036,-420.0,0.00019994,2]
[362365152,1748219442045,-420.0,0.00019994,2]
[362365154,1748219442054,-396.07,0.00019994,2]
[362365156,1748219442063,-250.46,0.00019994,2]
[362365158,1748219442073,-420.0,0.00019994,2]
[362365160,1748219442082,-420.0,0.00019994,2]
[362365161,1748219442091,-287.84,0.00019994,2]
[362365163,1748219442101,-420.0,0.00019994,2]
[362365164,1748219442110,-420.0,0.00019994,2]
[362365166,1748219442120,-420.0,0.00019994,2]
[362365168,1748219442128,-420.0,0.00019994,2]
[362365169,1748219442138,-477.53,0.00019994,2]
[362365171,1748219442147,-420.0,0.00019994,2]
[362365173,1748219442157,-429.89,0.00019994,2]
[362365174,1748219442166,-420.0,0.00019994,2]
[362365176,1748219442176,-420.0,0.00019994,2]
[362365178,1748219442185,-420.0,0.00019994,2]
[362365179,1748219442196,-420.0,0.00019994,2]
[362365181,1748219442205,-420.0,0.00019994,2]
[362365183,1748219442215,-420.0,0.00019994,2]
[362365184,1748219442224,-551.76,0.00019994,2]
[362365186,1748219442233,-427.79,0.00019994,2]
[362365188,1748219442243,-420.0,0.00019994,2]
[362365189,1748219442252,-326.17,0.00019994,2]
[362365191,1748219442262,-235.03,0.00019994,2]
[362365193,1748219442271,-420.0,0.00019994,2]
[362365194,1748219442280,-420.0,0.00019994,2]
[362365196,1748219442289,-229.07,0.00019994,2]
[362365198,1748219442298,-420.0,0.00019994,2]
[362365199,1748219442307,-492.69927581,0.00019994,2]
[362365201,1748219442316,-245.43,0.00019994,2]
[362365203,1748219442326,-396.21,0.00019994,2]
[362365205,1748219442336,-332.57,0.00019994,2]
[362365206,1748219442348,-150.39,0.00019994,2]
[362365208,1748219442358,-420.0,0.00019994,2]
[362365210,1748219442367,-420.0,0.00019994,2]
[362365211,1748219442376,-325.63,0.00019994,2]
[362365213,1748219442386,-420.0,0.00019994,2]
[362365215,1748219442395,-493.21,0.00019994,2]
[362365217,1748219442405,-420.0,0.00019994,2]
[362365218,1748219442414,-563.53,0.00019994,2]
[362365220,1748219442423,-420.0,0.00019994,2]
[362365222,1748219442432,-420.0,0.00019994,2]
[362365223,1748219442441,-420.0,0.00019994,2]
[362365225,1748219442451,-420.0,0.00019994,2]
[362365227,1748219442460,-420.0,0.00019994,2]
[362365230,1748219442470,-420.0,0.00019994,2]
[362365232,1748219442480,-420.0,0.00019994,2]
[362365235,1748219442490,-420.0,0.00019994,2]
[362365238,1748219442500,-462.34824445,0.00019994,2]
[362365240,1748219442509,-420.0,0.00019994,2]
[362365243,1748219442519,-420.0,0.00019994,2]
[362365246,1748219442528,-420.0,0.00019994,2]
[362365248,1748219442537,-158.01,0.00019994,2]
[362365251,1748219442547,-420.0,0.00019994,2]
[362365254,1748219442556,-420.0,0.00019994,2]
[362365257,1748219442566,-420.0,0.00019994,2]
[362365259,1748219442575,-338.56,0.00019994,2]
[362365261,1748219442584,-420.0,0.00019994,2]
[362365264,1748219442594,-420.0,0.00019994,2]
[362365267,1748219442603,-420.0,0.00019994,2]
[362365269,1748219442613,-420.0,0.00019994,2]
[362365272,1748219442623,-420.0,0.00019994,2]
[362365274,1748219442634,-420.0,0.00019994,2]
[362365276,1748219442643,-313.28,0.00019994,2]
[362365278,1748219442653,-344.89797076,0.00019994,2]
[362365279,1748219442663,-420.0,0.00019994,2]
[362365281,1748219442672,-420.0,0.00019994,2]
[362365283,1748219442682,-420.0,0.00019994,2]
[362365285,1748219442691,-420.0,0.00019994,2]
[362365286,1748219442701,-420.0,0.00019994,2]
[362365288,1748219442711,-420.0,0.00019994,2]
[362365290,1748219442721,-420.0,0.00019994,2]
[362365292,1748219442731,-420.0,0.00019994,2]
[362365294,1748219442740,-420.0,0.00019994,2]
[362365295,1748219442750,-420.0,0.00019994,2]
[362365297,1748219442761,-420.0,0.00019994,2]
[362365299,1748219442771,-420.0,0.00019994,2]
[362365301,1748219442780,-420.0,0.00019994,2]
[362365303,1748219442790,-420.0,0.00019994,2]
[362365304,1748219442800,-420.0,0.00019994,2]
[362365306,1748219442810,-458.23,0.00019994,2]
[362365308,1748219442819,-420.0,0.00019994,2]
[362365310,1748219442828,-420.0,0.00019994,2]
[362365311,1748219442838,-425.31,0.00019994,2]
[362365313,1748219442847,-420.0,0.00019994,2]
[362365315,1748219442857,-420.0,0.00019994,2]
[362365317,1748219442866,-420.0,0.00019994,2]
[362365318,1748219442875,-420.0,0.00019994,2]
[362365320,1748219442885,-420.0,0.00019994,2]
[362365322,1748219442895,-480.59765028,0.00019994,2]
[362365324,1748219442905,-420.0,0.00019994,2]
[362365326,1748219442915,-1377.4418778,0.00019995,2]
[362365327,1748219442924,-150.0,0.00019995,2]
[362365329,1748219442933,-13089.1372885,0.00019995,2]
[362365331,1748219442943,-9240.0443333,0.00019995,2]
[362365333,1748219442952,-182872.059967,0.00019995,2]
[362365334,1748219442961,-150.0,0.00019997,2]
[362365336,1748219442971,-551.58,0.00019998,2]
[362365338,1748219442984,-420.0,0.00019998,2]
[362365340,1748219442992,-216.84,0.00019998,2]
[362365341,1748219443002,-420.0,0.00019998,2]
[362365343,1748219443011,-50278.87983176,0.00019999,2]
[362365345,1748219443020,-394.58871812,0.00019999,2]
[362365347,1748219443030,-420.0,0.00019999,2]
[362365348,1748219443039,-420.0,0.00019999,2]
[362365350,1748219443048,-420.0,0.00019999,2]
[362365352,1748219443058,-420.0,0.00019999,2]
[362365354,1748219443069,-420.0,0.00019999,2]
[362365356,1748219443079,-420.0,0.00019999,2]
[362365357,1748219443089,-420.0,0.00019999,2]
[362365360,1748219443098,-420.0,0.00019999,2]
[362365363,1748219443107,-250.0,0.00019999,2]
[362365365,1748219443117,-420.0,0.00019999,2]
[362365366,1748219443126,-420.0,0.00019999,2]
[362365368,1748219443135,-420.0,0.00019999,2]
[362365370,1748219443144,-306.42684798,0.00019999,2]
[362365371,1748219443154,-420.0,0.00019999,2]
[362365373,1748219443163,-159.4144381,0.00019999,2]
[362365375,1748219443173,-420.0,0.00019999,2]
[362365377,1748219443182,-420.0,0.00019999,2]
[362365379,1748219443191,-420.0,0.00019999,2]
[362365380,1748219443202,-333.15,0.00019999,2]
[362365382,1748219443211,-500.0,0.00019999,2]
[362365384,1748219443220,-500.0,0.00019999,2]
[362365386,1748219443230,-420.0,0.00019999,2]
[362365388,1748219443240,-1524.9243,0.00019999,2]
[362365391,1748219443249,-166.57,0.00019999,2]
[362365393,1748219443259,-245.31246884,0.00019999,2]
[362365395,1748219443268,-420.0,0.00019999,2]
[362365397,1748219443278,-269.40058083,0.00019999,2]
[362365398,1748219443287,-420.0,0.00019999,2]
[362365400,1748219443296,-167.04,0.00019999,2]
[362365402,1748219443305,-420.0,0.00019999,2]
[362365403,1748219443314,-197.28,0.00019999,2]
[362365405,1748219443324,-420.0,0.00019999,2]
[362365407,1748219443333,-420.0,0.00019999,2]
[362365409,1748219443343,-568.98,0.00019999,2]
[362365411,1748219443352,-501.74,0.00019999,2]
[362365412,1748219443362,-420.0,0.00019999,2]
[362365414,1748219443372,-420.0,0.00019999,2]
[362365416,1748219443381,-420.0,0.00019999,2]
[362365417,1748219443390,-420.0,0.00019999,2]
[362365419,1748219443400,-420.0,0.00019999,2]
[362365421,1748219443409,-420.0,0.00019999,2]
[362365423,1748219443418,-519.12,0.00019999,2]
[362365424,1748219443428,-420.0,0.00019999,2]
[362365426,1748219443437,-420.0,0.00019999,2]
[362365428,1748219443447,-420.0,0.00019999,2]
[362365430,1748219443457,-420.0,0.00019999,2]
[362365432,1748219443466,-420.0,0.00019999,2]
[362365433,1748219443476,-420.0,0.00019999,2]
[362365435,1748219443485,-420.0,0.00019999,2]
[362365437,1748219443494,-420.0,0.00019999,2]
[362365439,1748219443505,-278.0,0.00019999,2]
[362365440,1748219443514,-420.0,0.00019999,2]
[362365442,1748219443524,-420.0,0.00019999,2]
[362365444,1748219443533,-420.0,0.00019999,2]
[362365446,1748219443542,-234.36,0.00019999,2]
[362365447,1748219443552,-420.0,0.00019999,2]
[362365449,1748219443561,-420.0,0.00019999,2]
[362365451,1748219443571,-420.0,0.00019999,2]
[362365452,1748219443580,-549.56,0.00019999,2]
[362365453,1748219443589,-420.0,0.00019999,2]
[362365454,1748219443598,-420.0,0.00019999,2]
[362365455,1748219443607,-428.81,0.00019999,2]
[362365456,1748219443616,-420.0,0.00019999,2]
[362365457,1748219443626,-420.0,0.00019999,2]
[362365458,1748219443635,-420.0,0.00019999,2]
[362365459,1748219443645,-532.48785778,0.00019999,2]
[362365460,1748219443654,-420.0,0.00019999,2]
[362365461,1748219443663,-420.0,0.00019999,2]
[362365462,1748219443672,-261.47785605,0.00019999,2]
[362365463,1748219443681,-420.0,0.00019999,2]
[362365464,1748219443690,-420.0,0.00019999,2]
[362365465,1748219443700,-420.0,0.00019999,2]
[362365466,1748219443710,-420.0,0.00019999,2]
[362365467,1748219443719,-480.0,0.00019999,2]
[362365468,1748219443729,-420.0,0.00019999,2]
[362365469,1748219443739,-247.86,0.00019999,2]
[362365470,1748219443749,-420.0,0.00019999,2]
[362365472,1748219443758,-460.9,0.00019999,2]
[362365473,1748219443767,-370.19053315,0.00019999,2]
[362365475,1748219443776,-532.37,0.00019999,2]
[362365477,1748219443786,-420.0,0.00019999,2]
[362365479,1748219443795,-420.0,0.00019999,2]
[362365481,1748219443804,-420.0,0.00019999,2]
[362365483,1748219443813,-420.0,0.00019999,2]
[362365484,1748219443823,-420.0,0.00019999,2]
[362365486,1748219443832,-420.0,0.00019999,2]
[362365488,1748219443841,-421.66479197,0.00019999,2]
[362365490,1748219443851,-423.52339773,0.00019999,2]
[362365492,1748219443860,-405.98,0.00019999,2]
[362365494,1748219443870,-398.16574508,0.00019999,2]
[362365496,1748219443879,-420.0,0.00019999,2]
[362365498,1748219443888,-420.0,0.00019999,2]
[362365500,1748219443897,-392.94,0.00019999,2]
[362365502,1748219443907,-420.0,0.00019999,2]
[362365504,1748219443916,-420.0,0.00019999,2]
[362365506,1748219443925,-420.0,0.00019999,2]
[362365508,1748219443935,-209.27,0.00019999,2]
[362365510,1748219443944,-422.35687749,0.00019999,2]
[362365512,1748219443954,-361.55,0.00019999,2]
[362365514,1748219443963,-341.54,0.00019999,2]
[362365516,1748219443973,-500.0,0.00019999,2]
[362365518,1748219443984,-500.0,0.00019999,2]
[362365520,1748219443993,-500.0,0.00019999,2]
[362365522,1748219444003,-21836.07996085,0.00019999,2]
[362365524,1748219444012,-420.0,0.00019999,2]
[362365526,1748219444023,-420.0,0.00019999,2]
[362365528,1748219444032,-420.0,0.00019999,2]
[362365530,1748219444042,-462.05,0.00019999,2]
[362365532,1748219444052,-423.25063819,0.00019999,2]
[362365534,1748219444063,-420.0,0.00019999,2]
[362365536,1748219444072,-420.0,0.00019999,2]
[362365538,1748219444082,-420.0,0.00019999,2]
[362365540,1748219444091,-489.64,0.00019999,2]
[362365542,1748219444101,-208.27692773,0.00019999,2]
[362365544,1748219444110,-426.85081385,0.00019999,2]
[362365546,1748219444119,-420.0,0.00019999,2]
[362365548,1748219444128,-420.0,0.00019999,2]
[362365550,1748219444138,-420.0,0.00019999,2]
[362365552,1748219444147,-420.0,0.00019999,2]
[362365554,1748219444157,-420.0,0.00019999,2]
[362365556,1748219444168,-273.93727611,0.00019999,2]
[362365558,1748219444177,-420.0,0.00019999,2]
[362365560,1748219444187,-387.7476239,0.00019999,2]
[362365562,1748219444197,-283.58972554,0.00019999,2]
[362365564,1748219444207,-420.0,0.00019999,2]
[362365566,1748219444217,-420.0,0.00019999,2]
[362365568,1748219444227,-420.0,0.00019999,2]
[362365570,1748219444236,-420.0,0.00019999,2]
[362365572,1748219444246,-420.0,0.00019999,2]
[362365574,1748219444255,-199.75090268,0.00019999,2]
[362365576,1748219444265,-444.53,0.00019999,2]
[362365578,1748219444274,-420.0,0.00019999,2]
[362365580,1748219444284,-420.0,0.00019999,2]
[362365582,1748219444293,-420.0,0.00019999,2]
[362365584,1748219444303,-420.0,0.00019999,2]
[362365586,1748219444313,-483.7,0.00019999,2]
[362365588,1748219444324,-420.0,0.00019999,2]
[362365590,1748219444333,-255.4575,0.00019999,2]
[362365592,1748219444344,-420.0,0.00019999,2]
[362365594,1748219444354,-420.0,0.00019999,2]
[362365596,1748219444363,-420.0,0.00019999,2]
[362365598,1748219444373,-177.41,0.00019999,2]
[362365600,1748219444382,-420.0,0.00019999,2]
[362365602,1748219444392,-200.19030764,0.0002,2]
[362365604,1748219444401,-81758.62449952,0.0002,2]
[362365606,1748219444411,-586.0,0.0002,2]
[362365608,1748219444420,-1263.0,0.0002,2]
[362365609,1748219444430,-1463.0,0.0002,2]
[362365611,1748219444439,-555.0,0.0002,2]
[362365613,1748219444448,-922.0,0.0002,2]
[362365615,1748219444458,-1152.0,0.0002,2]
[362365617,1748219444467,-4057.0,0.0002,2]
[362365619,1748219444477,-1311.0,0.0002,2]
[362365621,1748219444486,-6918.0,0.0002,2]
[362365623,1748219444496,-938.0,0.0002,2]
[362365625,1748219444505,-255.025,0.0002,2]
[362365627,1748219444515,-294714.43864487,0.0002,2]
[362365629,1748219444524,-317189.71470709,0.0002,2]
[362365631,1748219444534,-7227.90244822,0.0002,2]
[362365641,1748219444619,-1300.98933927,0.000199,2]
[362365644,1748219444638,-2402.86388879,0.000199,2]
[362365651,1748219444698,-1116.4,0.000199,2]
[362365764,1748219445821,-276.80385485,0.00019897,2]
[362365765,1748219445831,-3081.44419973,0.000199,2]
[362365778,1748219445952,-674.95592,0.000199,2]
[362365789,1748219446060,-38485.91071136,0.000199,2]
[362365791,1748219446070,-420.0,0.00019985,2]
[362365793,1748219446080,-19643.34133281,0.0002,2]
[362365795,1748219446090,-1626.31952488,0.0002,14]
[362365797,1748219446099,-100912.51089326,0.0002,2]
[362365799,1748219446111,-2722.32958891,0.0002,2]
[362365801,1748219446122,-1907.4619351,0.0002,2]
[362366421,1748219491196,340.99,0.00013699,2]
[362366422,1748219670528,150.0,0.00024295,120]
[362366424,1748220173897,-376.36573027,0.00016907,2]
[362366425,1748220177138,-226.9934084,0.00016907,2]
[362366426,1748220182260,-212.99998,0.00016907,2]
[362366427,1748220185530,-194.75367083,0.00016907,2]
[362366428,1748220188200,-152.07869734,0.00016907,2]
[362366429,1748220189833,-250.0,0.00016907,2]
[362366430,1748220193599,-121.80851316,0.00016907,2]
[362366431,1748220203803,2000.0,0.00015,2]
[362366432,1748220203826,2000.0,0.00015,2]
[362366433,1748220203847,2000.0,0.00015,2]
[362366434,1748220203869,2000.0,0.00015,2]
[362366435,1748220203894,9060.0328064,0.00015,2]
[362366436,1748220203916,10000.0,0.00015,2]
[362366437,1748220203936,10000.0,0.00015,2]
[362366438,1748220203956,10000.0,0.00015,2]
[362366439,1748220203979,10000.0,0.00015,2]
[362366440,1748220204002,10000.0,0.00015,2]
[362366441,1748220204023,10000.0,0.00015,2]
[362366442,1748220204044,10000.0,0.00015,2]
[362366443,1748220204065,10000.0,0.00015,2]
[362366444,1748220204087,10000.0,0.00015,2]
[362366445,1748220204107,10000.0,0.00015,2]
[362366446,1748220204129,10000.0,0.00015,2]
[362366447,1748220204151,10000.0,0.00015,2]
[362366448,1748220204172,10000.0,0.00015,2]
[362366449,1748220204193,10000.0,0.00015,2]
[362366450,1748220204214,10000.0,0.00015,2]
[362366451,1748220204236,84.9671936,0.00015,2]
[362366453,1748220484043,250.0,0.00015,2]
[362366454,1748220586706,323.94,0.00013699,2]
[362366457,1748220631864,-300.0,0.00017,2]
[362366458,1748220631874,-206.0,0.00018579,2]
[362366459,1748220631884,-32646.0,0.0001877,2]
[362366460,1748220631893,-1134.57,0.00018778,2]
[362366461,1748220631903,-1000.0,0.00018786,2]
[362366462,1748220631912,-160.58,0.00018792,2]
[362366463,1748220631922,-200.0,0.00018833,2]
[362366464,1748220631932,-1150.61,0.00018884,2]
[362366465,1748220631942,-350.0,0.00019,2]
[362366466,1748220631952,-165.12,0.00019056,2]
[362366467,1748220631962,-700.0,0.00019164,2]
[362366468,1748220631972,-500.0,0.00019164,2]
[362366469,1748220631981,-1200.0,0.0001917,2]
[362366470,1748220631990,-1535.0,0.00019171,2]
[362366471,1748220631999,-169.35,0.00019178,2]
[362366472,1748220632011,-653.0979096,0.00019321,2]
[362366473,1748220632020,-300.0,0.00019359,2]
[362366474,1748220632029,-460.13,0.00019589,2]
[362366475,1748220632038,-460.13,0.00019589,2]
[362366476,1748220632047,-517.826966,0.00019599,2]
[362366477,1748220632056,-955.91286076,0.000196,2]
[362366478,1748220632068,-207.4,0.00019688,2]
[362366479,1748220632078,-460.13,0.000197,2]
[362366480,1748220632089,-460.13,0.000197,2]
[362366481,1748220632098,-1021.0,0.000197,2]
[362366482,1748220632108,-9593.47022193,0.000197,2]
[362366483,1748220632117,-242.20337302,0.00019711,2]
[362366484,1748220632126,-9593.47022193,0.00019722,2]
[362366485,1748220632135,-242.20337296,0.00019738,2]
[362366486,1748220632144,-9557.12954129,0.00019744,2]
[362366487,1748220632153,-9593.47022193,0.00019744,2]
[362366488,1748220632162,-9557.12954123,0.00019761,2]
[362366489,1748220632171,-242.20337296,0.00019765,2]
[362366490,1748220632181,-9593.47022193,0.00019767,2]
[362366491,1748220632191,-9557.12954123,0.00019779,2]
[362366492,1748220632200,-151.0,0.00019788,2]
[362366493,1748220632210,-210.22428851,0.00019788,2]
[362366494,1748220632219,-9593.47022193,0.00019789,2]
[362366495,1748220632230,-242.20337296,0.00019792,2]
[362366496,1748220632239,-9557.12954123,0.00019796,2]
[362366498,1748220632248,-442.94,0.00019799,2]
[362366500,1748220632257,-420.0,0.00019799,2]
[362366502,1748220632266,-420.0,0.00019799,2]
[362366504,1748220632276,-420.0,0.00019799,2]
[362366506,1748220632286,-206.46,0.00019799,2]
[362366508,1748220632295,-451.45145922,0.00019799,2]
[362366510,1748220632305,-420.0,0.00019799,2]
[362366512,1748220632315,-423.54631575,0.00019799,2]
[362366514,1748220632324,-420.0,0.00019799,2]
[362366516,1748220632333,-394.58871812,0.00019799,2]
[362366518,1748220632342,-420.0,0.00019799,2]
[362366520,1748220632351,-420.0,0.00019799,2]
[362366522,1748220632361,-420.0,0.00019799,2]
[362366526,1748220632371,-420.0,0.00019799,2]
[362366528,1748220632384,-420.0,0.00019799,2]
[362366531,1748220632393,-420.0,0.00019799,2]
[362366533,1748220632403,-420.0,0.00019799,2]
[362366535,1748220632413,-420.0,0.00019799,2]
[362366537,1748220632422,-420.0,0.00019799,2]
[362366539,1748220632431,-250.0,0.00019799,2]
[362366541,1748220632440,-420.0,0.00019799,2]
[362366543,1748220632451,-420.0,0.00019799,2]
[362366545,1748220632462,-420.0,0.00019799,2]
[362366547,1748220632473,-420.0,0.00019799,2]
[362366549,1748220632483,-306.42684798,0.00019799,2]
[362366551,1748220632492,-420.0,0.00019799,2]
[362366553,1748220632501,-420.0,0.00019799,2]
[362366555,1748220632510,-420.0,0.00019799,2]
[362366557,1748220632520,-462.34824445,0.00019799,2]
[362366559,1748220632532,-420.0,0.00019799,2]
[362366561,1748220632541,-420.0,0.00019799,2]
[362366563,1748220632551,-420.0,0.00019799,2]
[362366565,1748220632560,-420.0,0.00019799,2]
[362366567,1748220632569,-313.28,0.00019799,2]
[362366569,1748220632578,-420.0,0.00019799,2]
[362366571,1748220632588,-420.0,0.00019799,2]
[362366573,1748220632597,-500.0,0.00019799,2]
[362366575,1748220632607,-420.0,0.00019799,2]
[362366576,1748220632615,-551.58,0.00019799,2]
[362366578,1748220632625,-420.0,0.00019799,2]
[362366580,1748220632634,-333.15,0.00019799,2]
[362366582,1748220632643,-420.0,0.00019799,2]
[362366584,1748220632653,-420.0,0.00019799,2]
[362366586,1748220632663,-420.0,0.00019799,2]
[362366588,1748220632672,-458.23,0.00019799,2]
[362366590,1748220632681,-420.0,0.00019799,2]
[362366592,1748220632691,-420.0,0.00019799,2]
[362366594,1748220632700,-245.31246884,0.00019799,2]
[362366596,1748220632710,-420.0,0.00019799,2]
[362366598,1748220632719,-420.0,0.00019799,2]
[362366600,1748220632729,-269.40058083,0.00019799,2]
[362366602,1748220632738,-420.0,0.00019799,2]
[362366604,1748220632748,-420.0,0.00019799,2]
[362366606,1748220632757,-420.0,0.00019799,2]
[362366608,1748220632767,-420.0,0.00019799,2]
[362366610,1748220632776,-396.21,0.00019799,2]
[362366612,1748220632786,-332.57,0.00019799,2]
[362366614,1748220632796,-420.0,0.00019799,2]
[362366616,1748220632806,-420.0,0.00019799,2]
[362366618,1748220632815,-420.0,0.00019799,2]
[362366620,1748220632824,-420.0,0.00019799,2]
[362366622,1748220632834,-501.74,0.00019799,2]
[362366624,1748220632844,-167.04,0.00019799,2]
[362366626,1748220632853,-500.0,0.00019799,2]
[362366628,1748220632862,-500.0,0.00019799,2]
[362366630,1748220632872,-162.19564299,0.00019799,2]
[362366632,1748220632882,-500.0,0.00019799,2]
[362366634,1748220632891,-555.17982505,0.00019799,2]
[362366636,1748220632901,-500.0,0.00019799,2]
[362366638,1748220632911,-500.0,0.00019799,2]
[362366640,1748220632920,-170.81570079,0.00019799,2]
[362366642,1748220632933,-329.18429921,0.00019799,2]
[362366644,1748220632943,-500.0,0.00019799,2]
[362366646,1748220632953,-500.0,0.00019799,2]
[362366648,1748220632963,-500.0,0.00019799,2]
[362366650,1748220632972,-500.0,0.00019799,2]
[362366652,1748220632981,-450.0,0.00019799,2]
[362366654,1748220632991,-460.06,0.000198,2]
[362366656,1748220633000,-82785.7930616,0.000198,2]
[362366658,1748220633012,-5454.0,0.000198,2]
[362366660,1748220633023,-699.4696033,0.000198,2]
[362366663,1748220633043,-1800.00000001,0.000198,2]
[362366665,1748220633055,-2035.55,0.000198,2]
[362366668,1748220633074,-1192.49994515,0.000198,2]
[362366671,1748220633090,-934.33,0.000198,2]
[362366673,1748220633101,-931.64999999,0.000198,2]
[362366676,1748220633122,-11480.47163918,0.000198,2]
[362366680,1748220633151,-22.86996649,0.000198,2]
[362366682,1748220633160,-102434.81994601,0.000198,2]
[362366684,1748220633170,-9593.47022193,0.00019811,2]
[362366686,1748220633179,-1417.24820417,0.00019813,2]
[362366688,1748220633191,-1319.24494851,0.00019813,2]
[362367128,1748220637931,-420.0,0.00019799,2]
[362367130,1748220637941,-420.0,0.00019799,2]
[362367132,1748220637951,-6820.63638855,0.00019813,2]
[362367133,1748220637960,-242.20337296,0.00019819,2]
[362367135,1748220637970,-5800.0,0.00019824,2]
[362367136,1748220637979,-9557.12954123,0.00019831,2]
[362367137,1748220637988,-5800.0,0.00019832,2]
[362367138,1748220637998,-150.0,0.00019833,2]
[362367139,1748220638007,-9593.47022193,0.00019833,2]
[362367140,1748220638016,-200.0,0.0001984,2]
[362367141,1748220638025,-520.04827267,0.00019841,2]
[362367142,1748220638038,-1130.02159836,0.00019841,2]
[362367143,1748220638091,-1042.82955653,0.00019841,2]
[362367330,1748220640027,-3107.10057244,0.00019841,2]
[362367332,1748220640036,-216.84,0.00019844,2]
[362367334,1748220640048,-420.0,0.00019844,2]
[362367336,1748220640057,-420.0,0.00019844,2]
[362367338,1748220640067,-420.0,0.00019844,2]
[362367340,1748220640076,-420.0,0.00019844,2]
[362367341,1748220640085,-420.0,0.00019844,2]
[362367343,1748220640095,-420.0,0.00019844,2]
[362367345,1748220640104,-420.0,0.00019844,2]
[362367347,1748220640114,-420.0,0.00019844,2]
[362367349,1748220640123,-420.0,0.00019844,2]
[362367350,1748220640133,-420.0,0.00019844,2]
[362367351,1748220640142,-420.0,0.00019844,2]
[362367352,1748220640153,-420.0,0.00019844,2]
[362367353,1748220640165,-420.0,0.00019844,2]
[362367354,1748220640175,-208.82,0.00019844,2]
[362367355,1748220640184,-420.0,0.00019844,2]
[362367356,1748220640195,-420.0,0.00019844,2]
[362367357,1748220640205,-420.0,0.00019844,2]
[362367358,1748220640215,-377.14,0.00019844,2]
[362367360,1748220640224,-420.0,0.00019844,2]
[362367362,1748220640233,-420.0,0.00019844,2]
[362367364,1748220640242,-278.0,0.00019844,2]
[362367366,1748220640251,-568.45,0.00019844,2]
[362367368,1748220640261,-420.0,0.00019844,2]
[362367370,1748220640270,-392.94,0.00019844,2]
[362367371,1748220640279,-420.0,0.00019844,2]
[362367373,1748220640290,-420.0,0.00019844,2]
[362367375,1748220640299,-420.0,0.00019844,2]
[362367377,1748220640308,-551.76,0.00019844,2]
[362367379,1748220640318,-427.79,0.00019844,2]
[362367381,1748220640327,-420.0,0.00019844,2]
[362367383,1748220640336,-183.01,0.00019844,2]
[362367385,1748220640346,-326.17,0.00019844,2]
[362367387,1748220640354,-235.03,0.00019844,2]
[362367389,1748220640365,-420.0,0.00019844,2]
[362367390,1748220640377,-229.07,0.00019844,2]
[362367391,1748220640391,-420.0,0.00019844,2]
[362367392,1748220640401,-420.0,0.00019844,2]
[362367393,1748220640411,-492.69927581,0.00019844,2]
[362367394,1748220640421,-245.43,0.00019844,2]
[362367395,1748220640432,-150.39,0.00019844,2]